lending/lending_fUSD_20240124
["ID","MTS","AMOUNT","RATE_DAILY","PERIOD"]
[312644779,1706125845278,-150.85733411,0.000265,2]
[312644780,1706125845287,-150.85733411,0.000265,2]
[312644781,1706125845296,-150.85733411,0.000265,2]
[312644782,1706125845305,-150.85733411,0.000265,2]
[312644783,1706125845315,-150.85733411,0.000265,2]
[312644784,1706125845325,-150.85733411,0.000265,2]
[312644785,1706125845334,-150.85733411,0.000265,2]
[312644786,1706125845344,-150.85733411,0.000265,2]
[312644787,1706125845353,-150.85733411,0.000265,2]
[312644788,1706125845365,-150.85733411,0.000265,2]
[312644789,1706125845374,-150.85733411,0.000265,2]
[312644790,1706125845384,-150.85733411,0.000265,2]
[312644791,1706125845393,-150.85733411,0.000265,2]
[312644792,1706125845403,-150.85733411,0.000265,2]
[312644793,1706125845413,-150.85733411,0.000265,2]
[312644794,1706125845422,-150.85733411,0.000265,2]
[312644795,1706125845432,-150.85733411,0.000265,2]
[312644796,1706125845441,-150.85733411,0.000265,2]
[312644797,1706125845451,-150.85733411,0.000265,2]
[312644798,1706125845461,-150.85733411,0.000265,2]
[312644799,1706125845470,-150.85733411,0.000265,2]
[312644800,1706125845479,-150.85733411,0.000265,2]
[312644801,1706125845489,-150.85733411,0.000265,2]
[312644802,1706125845498,-150.85733411,0.000265,2]
[312644803,1706125845508,-150.85733411,0.000265,2]
[312644804,1706125845517,-150.85733411,0.000265,2]
[312644805,1706125845526,-150.85733411,0.000265,2]
[312644806,1706125845535,-150.85733411,0.000265,2]
[312644807,1706125845544,-2536.5,0.00026575,2]
[312644808,1706125845553,-5093.19,0.00026575,2]
[312644809,1706125845562,-1000.0,0.00026575,2]
[312644810,1706125845572,-16369.71,0.00026591,2]
[312644811,1706125845582,-445.02,0.00026677,2]
[312644812,1706125845591,-3027.49,0.00026694,2]
[312644813,1706125845600,-167.0,0.00026703,2]
[312644814,1706125845611,-167.36,0.0002697,2]
[312644815,1706125845621,-500.0,0.00027,3]
[312644816,1706125845630,-360.0,0.00027098,2]
[312644817,1706125845639,-1417.52,0.00027238,2]
[312644818,1706125845648,-1006.17710672,0.000273,2]
[312644819,1706125845658,-3000.0,0.00027397,2]
[312644820,1706125845667,-3000.0,0.00027397,2]
[312644821,1706125845676,-3000.0,0.00027397,2]
[312644822,1706125845685,-3000.0,0.00027397,2]
[312644823,1706125845694,-3000.0,0.00027397,2]
[312644824,1706125845704,-3000.0,0.00027397,2]
[312644825,1706125845713,-3000.0,0.00027397,2]
[312644826,1706125845722,-3000.0,0.00027397,2]
[312644828,1706125845732,-3000.0,0.00027397,2]
[312644829,1706125845741,-3000.0,0.00027397,2]
[312644831,1706125845749,-3000.0,0.00027397,2]
[312644833,1706125845759,-3000.0,0.00027397,2]
[312644834,1706125845768,-3000.0,0.00027397,2]
[312644835,1706125845777,-3000.0,0.00027397,2]
[312644836,1706125845786,-3000.0,0.00027397,2]
[312644837,1706125845795,-3000.0,0.00027397,2]
[312644839,1706125845804,-3000.0,0.00027397,2]
[312644841,1706125845813,-3000.0,0.00027397,2]
[312644843,1706125845822,-3000.0,0.00027397,2]
[312644845,1706125845831,-3000.0,0.00027397,2]
[312644847,1706125845840,-155.0,0.00027397,2]
[312644849,1706125845850,-150.52,0.00027397,2]
[312644850,1706125845859,-155.66,0.00027397,2]
[312644852,1706125845868,-395.57,0.00027397,2]
[312644854,1706125845878,-30609.0,0.00027397,2]
[312644856,1706125845886,-35298.11280717,0.00027397,2]
[312644858,1706125845901,-14542.51719283,0.00027397,2]
[312644859,1706125845910,-1071.29,0.000274,2]
[312644860,1706125845919,-1071.29,0.000274,2]
[312644861,1706125845928,-1071.29,0.000274,2]
[312644862,1706125845937,-1071.29,0.000274,2]
[312644863,1706125845946,-1071.29,0.000274,2]
[312644864,1706125845956,-1071.29,0.000274,2]
[312644865,1706125845965,-1071.29,0.000274,2]
[312644866,1706125845974,-640.0,0.00027446,2]
[312644867,1706125845983,-167.0,0.00027505,2]
[312644868,1706125845993,-1071.29,0.00027546,2]
[312644869,1706125846002,-30609.0,0.00027556,2]
[312644870,1706125846011,-150.0,0.0002767,2]
[312644871,1706125846020,-395.57,0.00027686,2]
[312644872,1706125846030,-150.52,0.00027702,2]
[312644873,1706125846039,-30609.0,0.00027714,2]
[312644874,1706125846048,-206.0,0.00027778,11]
[312644875,1706125846057,-30609.0,0.00027872,2]
[312644876,1706125846067,-155.66,0.00027895,2]
[312644877,1706125846075,-205.83214282,0.000279,2]
[312644878,1706125846085,-515.5122799,0.00027933,2]
[312644879,1706125846094,-395.57,0.00027974,2]
[312644880,1706125846103,-150.52,0.00028006,2]
[312644881,1706125846114,-30609.0,0.0002803,2]
[312644882,1706125846123,-1417.52,0.00028082,2]
[312644883,1706125846132,-30609.0,0.00028189,2]
[312644884,1706125846141,-395.57,0.00028262,2]
[312644885,1706125846150,-167.0,0.00028307,2]
[312644886,1706125846160,-167.36,0.00028307,2]
[312644887,1706125846169,-167.0,0.00028307,2]
[312644888,1706125846178,-150.52,0.0002831,2]
[312644889,1706125846187,-3027.49,0.00028338,2]
[312644890,1706125846196,-30609.0,0.00028347,2]
[312644891,1706125846205,-155.66,0.00028394,2]
[312644892,1706125846215,-1071.29,0.00028495,2]
[312644893,1706125846224,-30609.0,0.00028505,2]
[312644894,1706125846234,-395.57,0.00028551,2]
[312644895,1706125846243,-150.52,0.00028615,2]
[312644896,1706125846252,-24140.76041967,0.00028664,2]
[312644897,1706125846263,-5425.33852606,0.00028664,2]
[312644898,1706125846275,-977.2776959,0.00028664,2]
[312644899,1706125846286,-65.62335837,0.00028664,2]
[312644900,1706125846295,-155.0,0.00028767,2]
[312644901,1706125846304,-2187.41965563,0.00028822,2]
[312644902,1706125846319,-712.29205035,0.00028822,2]
[312644903,1706125846335,-2060.09541739,0.00028822,2]
[312644904,1706125846347,-4175.42840931,0.00028822,2]
[312644905,1706125846358,-5752.9192475,0.00028822,2]
[312644907,1706125846370,-8000.0,0.00028822,2]
[312644909,1706125846389,-763.60893783,0.00028822,2]
[312644911,1706125846403,-3077.6682786,0.00028822,2]
[312644913,1706125846414,-3879.56800339,0.00028822,2]
[312644915,1706125846423,-395.57,0.00028839,2]
[312644917,1706125846433,-155.66,0.00028892,2]
[312644919,1706125846442,-150.52,0.00028919,2]
[312644921,1706125846453,-1027.05149272,0.00028926,2]
[312644923,1706125846463,-390.46850728,0.00028926,2]
[312644925,1706125846473,-32.104846,0.00028941,2]
[312644928,1706125846489,-412.915154,0.00028941,2]
[312644929,1706125846498,-95.844846,0.0002899,2]
[312644930,1706125846510,-975.445154,0.0002899,2]
[312644931,1706125846519,-379.31421259,0.00029,15]
[312644932,1706125846531,-314.18773176,0.00029,15]
[312644933,1706125846544,-608.80204842,0.00029,15]
[312644934,1706125846559,-417.85,0.00029,15]
[312644935,1706125846570,-5757.22728821,0.00029,15]
[312644936,1706125847492,-511.37529313,0.00026499,2]
[312644937,1706125847713,-1600.0,0.00026499,2]
[312644938,1706125847779,-418.02475556,0.00026499,2]
[312644939,1706125847791,-416.36559706,0.00026499,2]
[312644940,1706125847800,-10378.31440292,0.00029,15]
[312644941,1706125847824,-560.11812524,0.00029,15]
[312644942,1706125847844,-583.75401306,0.00029,15]
[312644943,1706125847870,-2072.93233201,0.00029,15]
[312644944,1706125847893,-35727.13002943,0.00029,15]
[312644945,1706125847905,-12900.0,0.00029,15]
[312644947,1706125918302,588.14904867,0.00021,2]
[312644948,1706125924112,205.0,0.00021333,2]
[312644949,1706125968658,155.0,0.00021333,2]
[312644950,1706125974906,1099.06361557,0.00021333,2]
[312644951,1706125977267,610.71165005,0.00021333,2]
[312644952,1706125980940,1024.31357539,0.00021333,2]
[312644953,1706125988644,159.33142403,0.00021333,2]
[312644954,1706125995265,209.11963475,0.00021333,2]
[312644955,1706125997272,376.35495612,0.00021333,2]
[312644956,1706125997320,940.24082226,0.00021333,2]
[312644957,1706126025661,6091.67187435,0.00021333,2]
[312644958,1706126034818,-502.01326483,0.00021677,2]
[312644959,1706126034840,-458.32811282,0.00021678,2]
[312644960,1706126034861,-327.64544965,0.00021678,2]
[312644961,1706126034883,-3047.53475621,0.00021678,2]
[312644962,1706126034904,-155.0,0.00021679,2]
[312644963,1706126034925,-1365.35018672,0.00021679,2]
[312644964,1706126034947,-759.8606458,0.0002168,2]
[312644965,1706126034968,-161.85361141,0.0002168,2]
[312644966,1706126034990,-176.83115917,0.00021681,2]
[312644967,1706126035012,-174.49949303,0.00021681,2]
[312644968,1706126035034,-302.60679678,0.00021682,2]
[312644969,1706126035055,-22635.3430364,0.00021685,2]
[312644970,1706126035076,-4397.51825088,0.00021686,2]
[312644971,1706126035098,-462.14726229,0.00021688,2]
[312644972,1706126035121,-675.32459632,0.00021689,2]
[312644973,1706126035143,-387.97,0.00022092,2]
[312644974,1706126035165,-4641.49847148,0.00022595,2]
[312644975,1706126035186,-1072.69042978,0.00022598,2]
[312644976,1706126035207,-15729.1268,0.00022599,2]
[312644977,1706126035228,-1000.0,0.00022699,2]
[312644978,1706126035252,-8923.613,0.00022699,2]
[312644979,1706126035273,-7851.5,0.00022819,2]
[312644980,1706126035295,-500.0,0.00022898,2]
[312644981,1706126035317,-943.2142832,0.00022918,2]
[312644982,1706126035338,-8357.41,0.00022996,18]
[312644983,1706126035360,-5000.0,0.00022996,2]
[312644984,1706126035381,-1046.49412238,0.00022996,2]
[312644985,1706126035402,-443.052,0.00022996,2]
[312644986,1706126035424,-1416.70167439,0.00022996,2]
[312644987,1706126035449,-155.0,0.00022997,2]
[312644988,1706126035469,-250.02290447,0.00022997,2]
[312644989,1706126035491,-1590.07300535,0.00022997,2]
[312644990,1706126035512,-800.51930065,0.00022998,2]
[312644991,1706126035535,-506291.87441085,0.00022998,2]
[312644992,1706126035557,-155.98532929,0.00022998,2]
[312644993,1706126035577,-350.66007833,0.00022998,2]
[312644994,1706126035599,-263.27381778,0.00022998,2]
[312644995,1706126035623,-161.90565138,0.00022998,2]
[312644996,1706126035645,-177.24781032,0.00022998,2]
[312644997,1706126035666,-1857.38971887,0.00022998,2]
[312644998,1706126035688,-240.33558274,0.00022998,2]
[312644999,1706126035710,-1000.0,0.00022998,2]
[312645000,1706126035731,-155.0,0.00022998,2]
[312645001,1706126035753,-1124.63119894,0.00022998,2]
[312645002,1706126035774,-233.29692962,0.00022999,2]
[312645003,1706126035795,-2782.61053922,0.00022999,2]
[312645004,1706126035816,-538.58822261,0.00022999,2]
[312645005,1706126035837,-405.77712545,0.00022999,2]
[312645006,1706126035860,-271443.68097059,0.00023,2]
[312645007,1706126041659,6091.67187435,0.00021333,2]
[312645008,1706126054755,161.85361141,0.00020699,2]
[312645009,1706126059677,586.06051143,0.00021333,2]
[312645010,1706126073238,161.85361141,0.00020697,2]
[312645011,1706126092411,161.85361141,0.0002049,2]
[312645012,1706126107248,161.85361141,0.00020489,2]
[312645013,1706126124936,2972.4187,0.00021583,2]
[312645014,1706126131754,161.85361141,0.00020489,2]
[312645015,1706126149775,283.67285785,0.00020489,2]
[312645017,1706126177287,169.68,0.00018392,2]
[312645027,1706126338766,202.499379,0.00021628,2]
[312645029,1706126385800,174.20057939,0.00021628,2]
[312645030,1706126418103,332.83856338,0.00021628,2]
[312645031,1706126483534,250.0,0.00021511,2]
[312645032,1706126485299,456.19,0.00021511,2]
[312645034,1706126551268,454.28,0.00019631,2]
[312645035,1706126566046,682.54,0.00021511,2]
[312645036,1706126599279,1538.68005587,0.00021637,2]
[312645037,1706126599303,382.15874413,0.00021637,2]
[312645038,1706126622365,459.41,0.00021511,2]
[312645039,1706126725257,169.68,0.00017156,2]
[312645040,1706126737266,2000.0,0.00021484,2]
[312645041,1706126747990,17702.69,0.00021484,2]
[312645042,1706126752917,508.86,0.00021521,2]
[312645043,1706126761810,175.32,0.00016712,2]
[312645044,1706126772931,180.0,0.00021596,2]
[312645045,1706126910872,458.32811282,0.0002164,2]
[312645046,1706127023538,568.78,0.00021513,2]
[312645058,1706127032110,-176.83115917,0.00021642,2]
[312645059,1706127032121,-265.0,0.00021643,2]
[312645060,1706127032130,-605.13137231,0.00021644,2]
[312645061,1706127032226,-484.99862769,0.00021644,2]
[312645062,1706127032235,-308.94137231,0.00021695,2]
[312645063,1706127032265,-1024.83257611,0.00021695,2]
[312645067,1706127032278,-501.06605158,0.00021695,2]
[312645069,1706127032288,-163.16,0.00021803,2]
[312645070,1706127032297,-417.79251044,0.00021852,2]
[312645071,1706127032307,-454.28,0.00021895,2]
[312645072,1706127032317,-247.29357669,0.00021906,2]
[312645073,1706127032331,-31.20642331,0.00021906,2]
[312645074,1706127032340,-259.1,0.00021917,2]
[312645075,1706127032351,-150.0,0.00021917,2]
[312645076,1706127032361,-7836.05,0.00021918,2]
[312645077,1706127032371,-250.0,0.00021918,2]
[312645078,1706127032381,-2487.43,0.00021918,2]
[312645079,1706127032392,-163.16,0.00021945,2]
[312645080,1706127032401,-856.0,0.00021964,2]
[312645082,1706127032412,-176.5,0.00022,2]
[312645084,1706127032421,-500.0,0.00022,2]
[312645086,1706127032431,-163.16,0.00022087,2]
[312645088,1706127032440,-163.16,0.00022229,2]
[312645089,1706127032450,-163.16,0.00022371,2]
[312645090,1706127032459,-2278.0,0.00022444,2]
[312645091,1706127032468,-1090.13,0.00022445,2]
[312645092,1706127032478,-163.16,0.00022513,2]
[312645093,1706127032487,-495.03511247,0.00022538,2]
[312645094,1706127032497,-352.54,0.00022548,2]
[312645095,1706127032506,-163.16,0.00022655,2]
[312645096,1706127032516,-1996.0,0.00022668,2]
[312645097,1706127032525,-237.82756622,0.00022668,2]
[312645101,1706127032563,-762.17243378,0.00022668,2]
[312645103,1706127032573,-218.43636079,0.00022757,2]
[312645106,1706127032588,-5290.85511245,0.00022757,2]
[312645108,1706127032599,-1984.18655,0.00022757,2]
[312645110,1706127032611,-397.098922,0.00022757,2]
[312645113,1706127032622,-678.85929911,0.00022757,2]
[312645115,1706127032634,-1593.04563478,0.00022757,2]
[312645117,1706127032643,-406.75836522,0.00022758,2]
[312645119,1706127032656,-1711.80569067,0.00022758,2]
[312645120,1706127032666,-555.12460719,0.00022763,2]
[312645121,1706127032676,-171.63288693,0.00022764,2]
[312645122,1706127032688,-347.47765446,0.00022764,10]
[312645123,1706127032698,-497.71456125,0.00022765,2]
[312645124,1706127032710,-1974.95,0.00022765,2]
[312645125,1706127032722,-2311.7,0.00022765,2]
[312645131,1706127038165,-880.84177352,0.00022765,2]
[312645132,1706127038223,-310.51257539,0.00022765,2]
[312645133,1706127038235,-804.84838118,0.00022765,2]
[312645134,1706127038269,-741.27723955,0.00022765,2]
[312645135,1706127038282,-420.8888349,0.00022765,2]
[312645136,1706127038294,-2127.11359445,0.00022765,2]
[312645137,1706127038305,-683.90531127,0.00022765,2]
[312645138,1706127038317,-12980.41340066,0.00022765,2]
[312645139,1706127038327,-6662.92129266,0.00022765,2]
[312645140,1706127038360,-203636.36222603,0.00022765,2]
[312645141,1706127038370,-2623.23288806,0.00022766,2]
[312645142,1706127038379,-164.99634728,0.00022766,2]
[312645143,1706127038389,-215.96058548,0.00022766,2]
[312645144,1706127038398,-475.03910094,0.00022767,2]
[312645145,1706127038408,-14414.01216397,0.00022769,2]
[312645146,1706127038417,-163.16,0.00022797,2]
[312645147,1706127038427,-184.44015735,0.00022843,2]
[312645148,1706127038437,-433.8549453,0.0002289,2]
[312645149,1706127038446,-1000.0,0.00022898,2]
[312645150,1706127038456,-50977.52363349,0.000229,2]
[312645153,1706127038467,-29226.05274577,0.000229,2]
[312645155,1706127038478,-94813.46209856,0.000229,2]
[312645157,1706127038489,-126091.4318163,0.000229,2]
[312645159,1706127038501,-205183.40411673,0.000229,2]
[312645161,1706127038511,-1446.0139,0.000229,2]
[312645163,1706127038520,-163.16,0.00022939,2]
[312645165,1706127038529,-187.18634131,0.00022955,2]
[312645167,1706127038538,-1363.9147301,0.00022984,2]
[312645169,1706127038548,-1572.02380534,0.00022985,2]
[312645171,1706127038557,-153.7858764,0.00022985,2]
[312645173,1706127038566,-670.7847378,0.00022985,2]
[312645175,1706127038576,-802.79209316,0.00022985,2]
[312645178,1706127038586,-182.9562349,0.00022985,2]
[312645180,1706127038595,-1000.0,0.00022997,2]
[312645182,1706127038604,-405.8425519,0.00022998,2]
[312645184,1706127038614,-188.85163637,0.00022998,2]
[312645186,1706127038623,-764.94187002,0.00022998,2]
[312645188,1706127038632,-1581.2849475,0.00022998,2]
[312645190,1706127038641,-155.0,0.00022999,2]
[312645192,1706127038651,-157.06072298,0.00022999,2]
[312645194,1706127038660,-501.82966339,0.00022999,2]
[312645196,1706127038669,-4709.43540849,0.00022999,5]
[312645198,1706127038681,-2397.33826175,0.00022999,5]
[312645200,1706127038691,-304.08770656,0.00022999,2]
[312645202,1706127038701,-129896.34118942,0.00023,2]
[312645205,1706127038716,-2182.74676176,0.00023,2]
[312645207,1706127038727,-645.46127399,0.00023,2]
[312645209,1706127038739,-524.34779956,0.00023,2]
[312645211,1706127038754,-300.0,0.00023,2]
[312645350,1706127041205,-797.595,0.00023,2]
[312645351,1706127041217,-515.86289348,0.00023,2]
[312645352,1706127041315,-110392.63108666,0.00023,2]
[312645353,1706127041386,-2065.12051418,0.00023,2]
[312645354,1706127041398,-14148.41917941,0.00023,2]
[312645355,1706127041445,-3932.15388301,0.00023,2]
[312645405,1706127043182,-1003.6035292,0.00023,2]
[312645420,1706127043291,-12577.21703376,0.00023,2]
[312645423,1706127043302,-513.27823085,0.00023,2]
[312645429,1706127043349,-12074.46182912,0.00023,2]
[312645431,1706127043360,-2913.05944248,0.00023,2]
[312645433,1706127043371,-29104.91328368,0.00023,2]
[312645438,1706127043407,-443.052,0.00023,2]
[312645440,1706127043418,-1173.36618363,0.00023,2]
[312645445,1706127043462,-2963.23088319,0.00023,2]
[312645447,1706127043473,-3950.0,0.00023,2]
[312645448,1706127043484,-22101.39882498,0.00023,2]
[312645495,1706127046440,-12848.59701894,0.00023,2]
[312645538,1706127046782,-3960.0,0.00023,2]
[312645540,1706127046799,-2448.71185141,0.00023,2]
[312645542,1706127046810,-1122.18281956,0.00023,2]
[312645544,1706127046821,-4190.10000001,0.00023,2]
[312645546,1706127046833,-451.72420992,0.00023,2]
[312645551,1706127046866,-60881.42715962,0.00023,2]
[312645553,1706127046877,-1584.31209862,0.00023,2]
[312645555,1706127046888,-608.58737114,0.00023,2]
[312645610,1706127047414,-70923.18720153,0.00023,2]
[312645631,1706127204604,187.2,0.00017312,2]
[312645633,1706127333264,4251.93051247,0.0002164,2]
[312645634,1706127348496,524.62089788,0.0002164,2]
[312645635,1706127355982,13029.36295885,0.0002164,2]
[312645636,1706127358051,295.84410021,0.0002164,2]
[312645637,1706127364923,3194.07254394,0.0002164,2]
[312645638,1706127372982,249.04508672,0.0002164,2]
[312645639,1706127382925,3194.07254394,0.00021422,2]
[312645640,1706127400944,845.0955277,0.00021422,2]
[312645646,1706127610956,163.06984126,0.00021622,2]
[312645647,1706127621606,453.03,0.00019739,2]
[312645648,1706127747717,1576.76,0.00021607,2]
[312645649,1706127759344,180.0,0.00021621,2]
[312645650,1706127858196,935.39,0.00021609,2]
[312645651,1706127917076,546.72,0.00021621,2]
[312645652,1706127928389,5515.75,0.0002163,2]
[312645654,1706128015462,10852.99464115,0.0002164,2]
[312645657,1706128019566,389.03,0.00021551,2]
[312645659,1706128031082,430.37,0.00019633,2]
[312645660,1706128052461,1062.12667326,0.0002164,2]
[312645662,1706128104166,1038.69179956,0.0002164,2]
[312645663,1706128179582,3047.53475621,0.0002164,2]
[312645684,1706128232299,-2478.53279229,0.00021641,2]
[312645686,1706128232309,-1182.74,0.00021644,2]
[312645688,1706128232319,-163.95,0.00021665,2]
[312645690,1706128232328,-163.38,0.00021828,2]
[312645692,1706128232337,-3126.62522492,0.00021849,2]
[312645693,1706128232346,-430.37,0.00021897,2]
[312645694,1706128232355,-712.95,0.00021918,2]
[312645695,1706128232364,-250.0,0.00021918,2]
[312645696,1706128232373,-163.38,0.00021942,2]
[312645697,1706128232382,-583.71584965,0.00022,2]
[312645698,1706128232391,-150.0,0.00022054,2]
[312645699,1706128232401,-150.0,0.00022054,2]
[312645700,1706128232410,-1948.68,0.00022055,2]
[312645701,1706128232419,-150.99,0.00022055,2]
[312645702,1706128232428,-5284.22,0.00022055,2]
[312645703,1706128232438,-163.38,0.00022055,2]
[312645704,1706128232447,-436.36,0.00022123,2]
[312645705,1706128232456,-168.94,0.00022157,2]
[312645706,1706128232465,-163.38,0.00022169,2]
[312645707,1706128232474,-548.76,0.00022191,2]
[312645708,1706128232484,-163.38,0.00022283,2]
[312645709,1706128232493,-248.03566672,0.00022315,2]
[312645710,1706128232502,-327.734199,0.00022315,2]
[312645711,1706128232511,-210.10824909,0.00022315,2]
[312645712,1706128232520,-174.22347507,0.00022315,2]
[312645713,1706128232529,-2632.13677838,0.00022315,2]
[312645714,1706128232538,-769.03,0.00022315,2]
[312645715,1706128232548,-499.99,0.00022315,2]
[312645716,1706128232557,-230.73082258,0.00022316,2]
[312645717,1706128232566,-4144.98007054,0.00022316,2]
[312645718,1706128232576,-1404.17,0.00022372,2]
[312645719,1706128232585,-163.38,0.00022397,2]
[312645720,1706128232594,-1182.74,0.00022445,2]
[312645721,1706128232603,-163.38,0.0002251,2]
[312645722,1706128232612,-892.0,0.00022545,2]
[312645723,1706128232621,-163.38,0.00022624,2]
[312645724,1706128232630,-1000.0,0.00022665,2]
[312645725,1706128232639,-163.38,0.00022738,2]
[312645727,1706128232648,-4783.9340927,0.00022767,2]
[312645729,1706128232658,-557.15402815,0.00022797,2]
[312645731,1706128232667,-215.26262203,0.00022798,2]
[312645732,1706128232676,-191.04557841,0.00022798,2]
[312645734,1706128232685,-246.13026017,0.00022798,2]
[312645737,1706128232695,-1061.27262846,0.00022798,2]
[312645738,1706128232704,-1600.0,0.00022798,2]
[312645740,1706128232714,-800.0,0.00022798,2]
[312645742,1706128232723,-1732.43369892,0.00022798,2]
[312645744,1706128232732,-3975.1296,0.00022798,2]
[312645746,1706128232741,-67282.7767,0.000228,2]
[312645748,1706128232751,-163.38,0.00022852,2]
[312645750,1706128232760,-17745.6,0.00022897,2]
[312645752,1706128232769,-6250.6032,0.00022898,2]
[312645754,1706128232779,-791.3055,0.00022898,2]
[312645755,1706128232788,-397.8618,0.00022898,2]
[312645756,1706128232797,-46486.71326307,0.00022898,2]
[312645757,1706128232810,-673.01,0.00022898,2]
[312645758,1706128232821,-1042.42601603,0.00022898,2]
[312645759,1706128232832,-1403.57398397,0.00022898,2]
[312645760,1706128232844,-792.99802951,0.00022898,2]
[312645761,1706128232901,-547.03,0.00022798,2]
[312645762,1706128233012,-612.83195705,0.00022798,2]
[312645763,1706128233023,-468.15,0.00022798,2]
[312645764,1706128233035,-576.35796011,0.00022798,2]
[312645765,1706128233047,-295.63008284,0.00022798,2]
[312645766,1706128233057,-954.36991716,0.00022898,2]
[312645767,1706128233076,-2472.68673685,0.00022898,2]
[312645768,1706128233110,-777.0591856,0.00022898,2]
[312645773,1706128238490,-9331.58480954,0.00022898,2]
[312645774,1706128238527,-5002.15662187,0.00022898,2]
[312645775,1706128238541,-5204.66092084,0.00022898,2]
[312645776,1706128238555,-9986.4,0.00022898,2]
[312645777,1706128238572,-556.54212966,0.00022898,2]
[312645778,1706128238593,-1653.58193,0.00022898,2]
[312645779,1706128238608,-348.73721,0.00022898,2]
[312645780,1706128238622,-2379.1855459,0.00022898,2]
[312645781,1706128238634,-1830.6375,0.00022898,2]
[312645782,1706128238644,-1296.30639021,0.00022899,2]
[312645783,1706128238654,-163.38,0.00022965,2]
[312645784,1706128238665,-289.2366302,0.0002299,2]
[312645785,1706128238675,-207.98262082,0.00022996,2]
[312645786,1706128238685,-711.49718173,0.00022997,2]
[312645787,1706128238695,-1571.14725509,0.00022997,2]
[312645788,1706128238710,-1451.29029696,0.00022997,2]
[312645789,1706128238722,-1071.57950665,0.00022997,2]
[312645790,1706128238733,-199.80077813,0.00022997,2]
[312645791,1706128238744,-163.13377643,0.00022997,2]
[312645792,1706128238755,-1153.75350663,0.00022997,2]
[312645793,1706128238766,-3728.99335309,0.00022997,2]
[312645794,1706128238779,-6757.8294754,0.00022997,2]
[312645795,1706128238789,-866.10368804,0.00022997,2]
[312645796,1706128238805,-369.93113102,0.00022997,2]
[312645853,1706128239387,-3978.1,0.00022997,2]
[312645855,1706128239399,-772.48436816,0.00022997,2]
[312645858,1706128239420,-15192.48344936,0.00022997,2]
[312645860,1706128239430,-64848.21520727,0.00022998,2]
[312645862,1706128239440,-269.68289212,0.00022998,2]
[312645865,1706128239450,-297.1012333,0.00022999,2]
[312645867,1706128239461,-205179.89647244,0.00022999,2]
[312645869,1706128239471,-697.35894259,0.00022999,2]
[312645871,1706128239481,-2604.99968715,0.00022999,2]
[312645873,1706128239491,-462409.77813115,0.00023,2]
[312645875,1706128239501,-155.0,0.00023,2]
[312645877,1706128239511,-200.0,0.00023,2]
[312645879,1706128239522,-1182.74,0.00023245,2]
[312645881,1706128239532,-546.72,0.00023265,2]
[312645884,1706128239542,-289.87,0.00023494,2]
[312645886,1706128239552,-163.06984124,0.00023692,2]
[312645888,1706128239563,-150.0,0.000238,2]
[312645890,1706128239574,-306.18581609,0.00024,2]
[312645892,1706128239584,-1182.74,0.00024046,2]
[312645894,1706128239594,-430.37,0.00024161,2]
[312645896,1706128239605,-176.15015525,0.000243,2]
[312645898,1706128239615,-250.0,0.00024658,2]
[312645900,1706128239626,-1182.74,0.00024847,2]
[312645902,1706128239636,-546.72,0.00024908,2]
[312645904,1706128239646,-800.0,0.00024986,2]
[312645906,1706128239657,-933.15965402,0.00025,2]
[312645908,1706128239668,-303.29562871,0.00025,2]
[312645910,1706128239678,-1250.52228375,0.00025,2]
[312645913,1706128239689,-1585.88267064,0.00025,2]
[312645915,1706128239699,-433.91206314,0.00025,2]
[312645917,1706128239709,-450.0,0.00025,3]
[312645919,1706128239719,-892.0,0.00025363,2]
[312645921,1706128239730,-163.06984124,0.00025761,2]
[312645923,1706128239740,-500.0,0.00026,2]